[Event "XVII Profigaia Open 2017"]
[Site "Gaia"]
[Date "2017.06.17"]
[Round "5"]
[White "Silva, Mariana Sofia T"]
[Black "Camelo, Joao"]
[Result "1-0"]
[ECO "B35"]
[WhiteElo "1922"]
[BlackElo "1300"]
[Annotator "NA RC"]
[PlyCount "72"]
[EventDate "2017.??.??"]
[EventType "swiss"]
[EventCountry "POR"]
[SourceTitle "playchess.com"]
[Source "ChessBase"]
[SourceQuality "1"]
[TimeControl "5400+30"]

1. e4 {[%emt 0:00:00]} c5 {[%emt 0:00:05]} 2. Nf3 {[%emt 0:00:00]} Nc6 {[%emt 0:00:08]} 3. d4 {[%emt 0:00:00]} cxd4 {[%emt 0:00:14]} 4. Nxd4 {[%emt 0:00:00]} g6 {[%emt 0:00:19]} 5. Nc3 {[%emt 0:00:00]} Bg7 {[%emt 0:00:22]} 6. Be3 {[%emt 0:00:06]} Nf6 {[%emt 0:00:22]} 7. Bc4 {[%emt 0:00:06]} Qa5 {[%emt 0:00:31]} 8. O-O {[%emt 0:00:08]} O-O {[%emt 0:00:20]} 9. Bb3 {[%emt 0:00:05]} d6 {[%emt 0:00:44]} 10. h3 {[%emt 0:00:06]} Bd7 {[%emt 0:00:41]} 11. Re1 {[%emt 0:00:41]} Rac8 {[%emt 0:01:50]} 12. Qd2 {[%emt 0:04:08] B35: Sicilian: Accelerated Dragon with 5 Nc3: main line} (12. Nf3 Rfd8 13. Nd5 Nxe4 14. Ng5 Nxg5 15. Bxg5 e6 16. Nf6+ Kh8 17. Ne4 Be8 18. Bxd8 Rxd8 19. Rb1 d5 {½-½ (46) Yu,Y (2734)-Ivanchuk,V (2728) Danzhou 2016}) 12... Ne5 {[%emt 0:05:25]} 13. Nd5 {[%emt 0:05:57]} Qd8 {[%emt 0:04:25]} 14. Bg5 {[%emt 0:04:20]} e6 $146 {[%emt 0:05:37]} ({Predecessor:} 14... Nxd5 15. exd5 Re8 16. c3 f6 17. Bf4 Qa5 18. Qe2 Qa6 19. Rad1 Qxe2 20. Rxe2 {1-0 (55) Jelecevic,I (2198)-Elez,S (2137) Banja Vrucica 2013}) 15. Nxf6+ {[%emt 0:05:28]} Bxf6 {[%emt 0:00:58]} 16. Bh6 {[%emt 0:01:39]} Bg7 {[%emt 0:11:31]} 17. Bxg7 {[%emt 0:00:08]} Kxg7 {[%emt 0:00:02]} 18. Qb4 {[%emt 0:05:09]} (18. Rad1 $14) 18... Qc7 {[%emt 0:02:22]} 19. Rad1 {[%emt 0:01:46]} (19. a4 $11) 19... Rfd8 {[%emt 0:04:43]} (19... a5 $15 20. Qa3 a4 21. Bxa4 Ra8) 20. f4 {[%emt 0:05:20]} Nc6 {[%emt 0:03:01]} 21. Nxc6 {[%emt 0:00:41]} Bxc6 {[%emt 0:00:02]} 22. Qd4+ {[%emt 0:01:15]} Kg8 {[%emt 0:02:00]} 23. Qxa7 {[%emt 0:00:46]} Qe7 {[%emt 0:08:09]} 24. Qf2 {[%emt 0:01:11]} Ra8 {[%emt 0:09:37]} 25. f5 {[%emt 0:04:27]} Rf8 {[%emt 0:09:42]} 26. f6 {[%emt 0:03:02]} Qd8 {[%emt 0:01:46]} 27. e5 {[%emt 0:00:11]} h6 {[%emt 0:08:32]} 28. Rxd6 $18 {[%emt 0:00:59]} Qc7 {[%emt 0:01:15]} 29. Qe3 {[%emt 0:03:25]} Kh7 {[%emt 0:00:20]} 30. c3 {[%emt 0:03:28]} Rfd8 {[%emt 0:07:20]} 31. Red1 {[%emt 0:02:08]} Rd7 {[%emt 0:01:54]} 32. Rxd7 {[%emt 0:01:31]} Bxd7 {[%emt 0:00:01]} 33. h4 {[%emt 0:00:52]} Ba4 {[%emt 0:01:11]} 34. h5 {[%emt 0:03:05]} g5 {[%emt 0:00:58]} 35. Qe4+ {[%emt 0:00:08]} Kh8 {[%emt 0:00:52]} 36. Bxa4 {[%emt 0:00:07]} Rxa4 1-0

[Event "XVII Profigaia Open 2017"]
[Site "Gaia"]
[Date "2017.06.17"]
[Round "5"]
[White "Antao, Jorge"]
[Black "Marinho, Antonio Pedro"]
[Result "1-0"]
[ECO "A46"]
[WhiteElo "1873"]
[BlackElo "1574"]
[Annotator "NA RC"]
[PlyCount "51"]
[EventDate "2017.??.??"]
[EventType "swiss"]
[EventCountry "POR"]
[SourceTitle "playchess.com"]
[Source "ChessBase"]
[SourceQuality "1"]
[TimeControl "5400+30"]

1. d4 {[%emt 0:00:00]} Nf6 {[%emt 0:00:06]} 2. Nf3 {[%emt 0:00:41]} e6 {[%emt 0:00:11]} 3. Nbd2 {[%emt 0:01:02]} d5 {[%emt 0:00:16]} 4. e3 {[%emt 0:00:30]} c5 {[%emt 0:00:36]} 5. c3 {[%emt 0:00:32]} Nbd7 {[%emt 0:01:25]} 6. Bd3 {[%emt 0:00:24]} Be7 7. Qe2 {D05: Colle System with ...e6} (7. O-O Qc7 8. Qe2 O-O 9. Re1 b6 10. h3 Bb7 11. Bc2 Rad8 12. e4 dxe4 13. Nxe4 Nxe4 14. Bxe4 Bxe4 {½-½ (14) Drazic,S (2540)-Pavasovic,D (2574) Nova Gorica 2010}) 7... c4 8. Bc2 b5 {[%emt 0:02:33]} 9. e4 {[%emt 0:01:55]} a5 $146 {[%emt 0:04:08]} ({Predecessor:} 9... dxe4 10. Nxe4 Qc7 11. Nxf6+ Nxf6 12. a4 b4 13. Ne5 Bb7 {0-1 (39) Mueller,T (2147)-Walther,H (2030) Baiersbronn 1998}) 10. O-O {[%emt 0:01:02]} b4 {[%emt 0:00:49]} 11. Re1 {[%emt 0:00:44]} O-O {[%emt 0:00:58]} 12. e5 {[%emt 0:00:34]} Nh5 {[%emt 0:00:35]} 13. Nf1 {[%emt 0:00:35]} g6 {[%emt 0:01:38]} 14. Bh6 {[%emt 0:00:46]} Ng7 {[%emt 0:00:15]} 15. Ne3 {[%emt 0:00:47]} a4 {[%emt 0:04:13]} 16. Qd2 {[%emt 0:01:12]} (16. cxb4 $16 Bxb4 17. Rec1) 16... b3 {[%emt 0:02:54]} 17. axb3 {[%emt 0:00:26]} cxb3 {[%emt 0:02:03]} 18. Bxb3 {[%emt 0:00:34]} a3 {[%emt 0:00:42]} 19. bxa3 {[%emt 0:05:07]} Rxa3 {[%emt 0:00:10]} 20. Rxa3 {[%emt 0:01:42]} Bxa3 {[%emt 0:00:09]} 21. Ng4 {[%emt 0:01:04]} Be7 {[%emt 0:00:53]} 22. h4 {[%emt 0:07:08]} ({Resist} 22. Bxg7 $6 Kxg7 23. Qh6+ Kh8 $18) 22... Bxh4 {[%emt 0:05:12]} 23. Bxg7 {[%emt 0:00:59]} Bxf2+ {[%emt 0:02:26]} 24. Kxf2 $18 {[%emt 0:01:08]} Kxg7 {[%emt 0:00:08]} 25. Qh6+ {[%emt 0:00:24]} Kh8 {[%emt 0:01:21]} 26. Rh1 {[%emt 0:00:28]} 1-0

[Event "XVII Profigaia Open 2017"]
[Site "Gaia"]
[Date "2017.06.17"]
[Round "5"]
[White "Jesus, Joao Pedro Mendes D"]
[Black "Moreira, Rafael Mota"]
[Result "1-0"]
[ECO "C62"]
[WhiteElo "1868"]
[BlackElo "1478"]
[Annotator "NA RC"]
[PlyCount "53"]
[EventDate "2017.??.??"]
[EventType "swiss"]
[EventCountry "POR"]
[SourceTitle "playchess.com"]
[Source "ChessBase"]
[SourceQuality "1"]
[TimeControl "5400+30"]

{[%evp 12,38,40,4,17,0,13,19,32767,32767,32767,32767,32767,32767,158,159,135,91,92,111,123,106,32767,92,113,75,442,383,885]} 1. e4 {[%emt 0:09:42]} e5 {[%emt 0:00:12]} 2. Nf3 {[%emt 0:00:15]} Nc6 {[%emt 0:00:07]} 3. Bb5 {[%emt 0:00:09]} d6 {[%emt 0:00:10]} 4. d4 {[%emt 0:00:33]} exd4 {[%emt 0:00:22]} 5. Nxd4 {[%emt 0:04:04]} Bd7 {[%emt 0:00:11]} 6. Nc3 {[%emt 0:02:09]} g6 {[%emt 0:06:06]} 7. h4 {[%emt 0:13:58] LiveBook: 4 Games C62: Ruy Lopez: Steinitz Defence} Bg7 {[%emt 0:10:50]} 8. Be3 {[%emt 0:11:44]} (8. Bg5 Nf6 9. Bxc6 bxc6 10. Qd2 h6 11. Bf4 Ng4 12. f3 Ne5 13. b3 c5 14. Nde2 a5 {½-½ (48) Shirov,A (2709)-Ehlvest,J (2613) Jurmala 2013}) 8... Nf6 {[%emt 0:06:11]} 9. Qd2 $146 {[%emt 0:04:28]} ({Predecessor:} 9. Be2 Qe7 10. h5 Nxd4 11. Bxd4 O-O 12. Qd3 Rae8 13. O-O-O Nxe4 14. Bxg7 Kxg7 {1-0 (41) Kolarov,A-Filchev,R Sofia 1957}) 9... Ng4 {[%emt 0:05:18]} 10. Bg5 {[%emt 0:01:59]} Bf6 {[%emt 0:00:48]} 11. Nxc6 {[%emt 0:08:25]} bxc6 {[%emt 0:01:13]} 12. Be2 {[%emt 0:00:53]} Bxg5 {[%emt 0:06:59]} 13. hxg5 {[%emt 0:00:20]} f6 {[%emt 0:00:49]} 14. Bxg4 {[%emt 0:08:08]} (14. f3 $142 Ne5 15. f4) 14... Bxg4 {[%emt 0:00:15]} 15. Qf4 {[%emt 0:00:23]} Be6 {[%emt 0:05:25]} 16. gxf6 {[%emt 0:01:21]} Kf7 {[%emt 0:01:58]} 17. e5 {[%emt 0:03:07]} dxe5 {[%emt 0:02:56]} 18. Qxe5 {[%emt 0:00:15]} Re8 $2 {[%emt 0:01:35]} (18... Qd6 $16 {is more resistant.} 19. Qe2 Bf5 20. Qc4+ Qe6+ 21. Qxe6+ Bxe6) 19. Rxh7+ {[%emt 0:02:39]} Kg8 $18 {[%emt 0:00:06]} (19... Kf8) 20. Rg7+ {[%emt 0:08:58]} Kf8 {[%emt 0:04:44]} 21. Qc5+ {[%emt 0:00:55]} Qd6 {[%emt 0:00:43]} 22. Qxd6+ {[%emt 0:00:20]} cxd6 {[%emt 0:00:08]} 23. O-O-O {[%emt 0:00:12]} Bf7 {[%emt 0:01:16]} 24. Rh1 {[%emt 0:00:42]} Bg8 {[%emt 0:01:07]} 25. Rh8 {[%emt 0:00:16]} Re1+ {[%emt 0:01:05]} 26. Kd2 {[%emt 0:00:07]} Re7 {[%emt 0:00:14]} 27. Rhxg8# {[%emt 0:00:08]} 1-0

[Event "XVII Profigaia Open 2017"]
[Site "Gaia"]
[Date "2017.06.17"]
[Round "5"]
[White "Santos, Elton Jorge Francis"]
[Black "Amorim, Vicente Nuno Marque"]
[Result "0-1"]
[ECO "C46"]
[WhiteElo "1843"]
[BlackElo "1084"]
[Annotator "NA RC"]
[PlyCount "68"]
[EventDate "2017.??.??"]
[EventType "swiss"]
[EventCountry "POR"]
[SourceTitle "playchess.com"]
[Source "ChessBase"]
[SourceQuality "1"]
[TimeControl "5400+30"]

1. e4 {[%emt 0:00:00]} e5 {[%emt 0:05:20]} 2. Nf3 {[%emt 0:00:05]} Nc6 {[%emt 0:00:15]} 3. Nc3 {[%emt 0:00:28]} d6 {[%emt 0:00:28]} 4. Bb5 {[%emt 0:00:33]} Bd7 {[%emt 0:00:28]} 5. d4 {[%emt 0:02:55]} Nf6 {[%emt 0:01:39]} 6. dxe5 {[%emt 0:02:26] C62: Ruy Lopez: Steinitz Defence} dxe5 {[%emt 0:00:32]} (6... Nxe5 7. Bxd7+ Qxd7 8. O-O Be7 9. Nxe5 dxe5 10. Qxd7+ Nxd7 11. Nb5 Kd8 12. Rd1 a6 13. Nc3 c6 14. Be3 Kc7 15. f3 b5 16. Kf2 Rhd8 17. Ne2 Nc5 18. Rxd8 Rxd8 {½-½ (48) Kritz,L (2610)-Harikrishna,P (2668) Lubbock 2008}) 7. Bxc6 {[%emt 0:04:22]} Bxc6 {[%emt 0:00:39]} 8. Qxd8+ {[%emt 0:00:56]} Rxd8 {[%emt 0:00:24]} 9. O-O {[%emt 0:00:29]} Bd6 {[%emt 0:05:03]} 10. Re1 $146 {[%emt 0:00:34]} ({Predecessor:} 10. Bg5 Be7 11. Nxe5 Nxe4 12. Bxe7 Kxe7 13. Nxc6+ bxc6 14. Nxe4 Rhe8 {1-0 (47) Resch,M-Becker,M Germany 1999}) 10... O-O {[%emt 0:01:31]} 11. h3 {[%emt 0:04:59]} (11. Bg5 $11) 11... Rfe8 {[%emt 0:00:48]} 12. Bd2 {[%emt 0:02:45]} b5 {[%emt 0:04:54]} 13. a3 {[%emt 0:00:54]} Ra8 {[%emt 0:08:15]} 14. Na2 {[%emt 0:01:25]} (14. Bg5 $15) 14... Bxe4 {[%emt 0:03:31]} 15. Ng5 {[%emt 0:08:13]} (15. Bg5 $17) 15... Bxc2 {[%emt 0:02:49]} 16. Rac1 {[%emt 0:00:24]} Bb3 {[%emt 0:02:12]} 17. Ra1 {[%emt 0:01:16]} Bxa2 {[%emt 0:02:05]} 18. Rxa2 {[%emt 0:00:04]} h6 {[%emt 0:00:45]} 19. Ne4 {[%emt 0:02:30]} Nxe4 {[%emt 0:01:29]} 20. Rxe4 {[%emt 0:00:07]} f5 {[%emt 0:00:59]} 21. Re1 {[%emt 0:06:59]} e4 {[%emt 0:01:06]} 22. b4 {[%emt 0:01:10]} c5 {[%emt 0:03:42]} 23. bxc5 {[%emt 0:00:46]} Bxc5 {[%emt 0:00:16]} 24. Rc1 {[%emt 0:03:12]} Bb6 {[%emt 0:01:20]} 25. Bb4 {[%emt 0:01:45]} (25. Rb1 $142) 25... Rec8 {[%emt 0:02:53]} 26. Rac2 {[%emt 0:00:54]} Rxc2 {[%emt 0:00:50]} 27. Rxc2 {[%emt 0:00:08]} Rd8 {[%emt 0:01:15]} 28. Kf1 $19 {[%emt 0:02:07]} Kf7 {[%emt 0:04:18]} 29. Bc5 {[%emt 0:00:31]} Rc8 {[%emt 0:00:40]} 30. Bxb6 {[%emt 0:02:16]} Rxc2 {[%emt 0:00:15]} 31. Bxa7 {[%emt 0:00:21]} f4 {[%emt 0:02:27]} 32. Bb8 {[%emt 0:01:59]} f3 {[%emt 0:00:18]} 33. gxf3 {[%emt 0:01:03]} exf3 {[%emt 0:00:15]} 34. Bd6 {[%emt 0:00:18]} Rc1# {Ke1 Rc3 Kd2 Rc1} 0-1

[Event "XVII Profigaia Open 2017"]
[Site "Gaia"]
[Date "2017.06.17"]
[Round "5"]
[White "De Moura, Fernando Alves"]
[Black "Pintor, Simao Maciel Abranc"]
[Result "0-1"]
[ECO "B38"]
[WhiteElo "1814"]
[BlackElo "2022"]
[Annotator "NA RC"]
[PlyCount "104"]
[EventDate "2017.??.??"]
[EventType "swiss"]
[EventCountry "POR"]
[SourceTitle "playchess.com"]
[Source "ChessBase"]
[SourceQuality "1"]
[TimeControl "5400+30"]

1. e4 {[%emt 0:00:00]} c5 {[%emt 0:00:05]} 2. Nf3 {[%emt 0:00:03]} Nc6 {[%emt 0:00:05]} 3. d4 {[%emt 0:00:48]} cxd4 {[%emt 0:00:06]} 4. Nxd4 {[%emt 0:00:09]} g6 {[%emt 0:00:05]} 5. c4 {[%emt 0:03:23]} Bg7 {[%emt 0:00:06]} 6. Be3 {[%emt 0:03:32]} Nf6 {[%emt 0:00:07]} 7. Nc3 {[%emt 0:00:11]} O-O {[%emt 0:00:10]} 8. Be2 {[%emt 0:01:04]} d6 {[%emt 0:00:07]} 9. Nc2 {[%emt 0:01:11]} a5 {[%emt 0:02:15] B37: Sicilian: Maroczy Bind with 5...Bg7, sidelines} (9... Nd7 10. Qd2 a5 11. O-O Nc5 12. f3 a4 13. Rab1 Qa5 14. Kh1 Be6 15. Rfc1 Rfc8 16. Na3 h5 17. Bf1 {1-0 (40) Carlsen,M (2837)-Le,Q (2693) Astana 2012}) 10. f3 {[%emt 0:01:44]} Be6 {[%emt 0:04:13]} 11. Rb1 {[%emt 0:02:47]} a4 {[%emt 0:04:37]} 12. O-O {[%emt 0:01:46]} Nd7 $146 {[%emt 0:07:01]} ({Predecessor:} 12... Qa5 13. Kh1 Rfc8 14. Nd5 Bxd5 15. cxd5 Ne5 16. Na3 Ned7 17. Nc4 {1-0 (32) Spalir,J (2325)-Amon,N (1976) Ptuj 2015}) 13. Kh1 {[%emt 0:07:10]} (13. Na3 $14) 13... a3 {[%emt 0:01:33]} 14. Nd4 {[%emt 0:10:54]} axb2 {[%emt 0:03:35]} 15. Rxb2 {[%emt 0:04:50]} Nc5 {[%emt 0:02:56]} 16. Qd2 {[%emt 0:05:02]} Ra3 {[%emt 0:06:18]} 17. Ndb5 {[%emt 0:04:33]} Qa5 {[%emt 0:00:28]} 18. Rc1 {[%emt 0:02:35]} Na4 {[%emt 0:10:22]} 19. Rb3 {[%emt 0:05:34]} Rxb3 {[%emt 0:00:59]} 20. axb3 {[%emt 0:00:16]} Nc5 {[%emt 0:02:25]} 21. Bd1 {[%emt 0:03:34]} Qb4 {[%emt 0:02:34]} 22. Qc2 {[%emt 0:07:07]} Na5 {[%emt 0:02:55]} 23. Bxc5 {[%emt 0:15:21]} dxc5 {[%emt 0:05:15]} 24. Ra1 {[%emt 0:02:15]} Bxc3 {[%emt 0:10:20]} 25. Nxc3 {[%emt 0:04:47]} Rd8 {[%emt 0:00:10]} 26. h3 {[%emt 0:00:19]} h5 {[%emt 0:01:17]} 27. Ra4 {[%emt 0:01:31]} Qb6 {[%emt 0:00:12]} 28. Nd5 {[%emt 0:00:59]} Bxd5 $1 {[%emt 0:00:21]} 29. exd5 {[%emt 0:00:01]} Qc7 {[%emt 0:00:42]} (29... e6 $1 $15) 30. Qe4 {[%emt 0:03:15]} (30. f4 $5) 30... b6 {[%emt 0:00:22]} (30... Nc6 $5) 31. Bc2 {[%emt 0:00:31]} Rd6 {[%emt 0:01:04]} 32. Ra1 {[%emt 0:01:21]} e6 {[%emt 0:01:51]} 33. Rd1 {[%emt 0:01:28]} Qd8 {[%emt 0:01:13]} 34. Qe5 {[%emt 0:01:49]} exd5 {[%emt 0:01:08]} 35. cxd5 {[%emt 0:01:06]} b5 {[%emt 0:01:12]} 36. Qa1 {[%emt 0:00:45]} Nb7 {[%emt 0:04:45]} 37. Qa7 {[%emt 0:00:45]} Rxd5 {[%emt 0:01:13]} 38. Rxd5 $19 {[%emt 0:02:04]} (38. Rg1 $17 Nd6 39. Be4 Nxe4 40. fxe4) 38... Qxd5 {[%emt 0:00:06]} 39. Be4 {[%emt 0:00:07]} Qd1+ {[%emt 0:00:05]} 40. Kh2 {[%emt 0:00:14]} Qd6+ {[%emt 0:00:40]} 41. Kh1 {[%emt 0:00:17]} Nd8 {[%emt 0:00:07]} 42. Qa8 {[%emt 0:00:42]} Kg7 {[%emt 0:00:41]} 43. Bd5 {[%emt 0:00:27]} Ne6 {[%emt 0:00:35]} 44. Qb7 {[%emt 0:00:16]} Nc7 {[%emt 0:01:21]} 45. Bc6 {[%emt 0:00:20]} c4 {[%emt 0:00:48]} 46. bxc4 {[%emt 0:01:53]} bxc4 {[%emt 0:00:06]} 47. Qb2+ {[%emt 0:00:35]} Qf6 {[%emt 0:00:30]} 48. Qxf6+ {[%emt 0:02:02]} Kxf6 {[%emt 0:00:05]} 49. Kg1 {[%emt 0:00:12]} Ke5 {[%emt 0:00:51]} 50. Kf2 {[%emt 0:00:07]} Kd4 {[%emt 0:00:06]} 51. Ke2 {[%emt 0:00:28]} Kc3 {[%emt 0:00:19]} 52. Kd1 {[%emt 0:00:01]} Kb2 {[%emt 0:00:15]} 0-1

[Event "XVII Profigaia Open 2017"]
[Site "Gaia"]
[Date "2017.06.17"]
[Round "5"]
[White "Silva, Ana Ines Teixeira D"]
[Black "Quinta, Daniel"]
[Result "1-0"]
[ECO "B01"]
[WhiteElo "1775"]
[BlackElo "2064"]
[Annotator "NA RC"]
[PlyCount "71"]
[EventDate "2017.??.??"]
[EventType "swiss"]
[EventCountry "POR"]
[SourceTitle "playchess.com"]
[Source "ChessBase"]
[SourceQuality "1"]
[TimeControl "5400+30"]

1. e4 {[%emt 0:00:00]} d5 {[%emt 0:22:53]} 2. exd5 {[%emt 0:00:00]} Nf6 {[%emt 0:00:07]} 3. d4 {[%emt 0:00:00]} Bg4 {[%emt 0:00:39]} 4. Bb5+ {[%emt 0:02:54]} Nbd7 {[%emt 0:01:26]} 5. f3 {[%emt 0:01:54]} Bf5 {[%emt 0:01:12]} 6. Nc3 {[%emt 0:10:32]} a6 {[%emt 0:03:17]} 7. Ba4 {[%emt 0:03:31]} b5 {[%emt 0:00:58] B01: Scandinavian Defence} 8. Bb3 {[%emt 0:00:09]} Nb6 {[%emt 0:00:52]} 9. Nge2 {[%emt 0:05:26]} Nbxd5 {[%emt 0:09:32]} 10. Nxd5 {[%emt 0:06:01]} Nxd5 {[%emt 0:00:09]} 11. Ng3 {[%emt 0:02:59]} Bg6 {[%emt 0:02:38]} (11... Bc8 12. Ne4 e6 13. Bg5 Be7 14. Bxe7 Qxe7 15. Nc5 {1-0 (59) Petrosian,T (2616)-Laylo,D (2496) Chicago 2008}) 12. O-O {[%emt 0:03:31]} e6 {[%emt 0:01:39]} 13. Ne4 {[%emt 0:03:41]} Be7 {[%emt 0:02:42]} 14. c4 $146 {[%emt 0:08:33]} ({Predecessor:} 14. c3 O-O 15. Kh1 {½-½ (54) Nielsen,D-Andersen,N Tastrup 2000}) 14... Nb6 {[%emt 0:07:43]} 15. Be3 {[%emt 0:05:30]} O-O {[%emt 0:03:02]} 16. Rc1 {[%emt 0:05:24]} bxc4 {[%emt 0:18:44]} 17. Bxc4 {[%emt 0:00:55]} Nxc4 {[%emt 0:13:36]} 18. Rxc4 {[%emt 0:00:11]} Qd5 {[%emt 0:01:42]} 19. Rxc7 {[%emt 0:06:32]} Bd8 {[%emt 0:01:48]} 20. Rc5 {[%emt 0:03:04]} (20. Nc3 $14 Qa5 21. Rc4) 20... Qxa2 21. Rf2 {[%emt 0:11:59]} Bb6 {[%emt 0:00:17]} 22. Nc3 {[%emt 0:01:30]} Bxc5 {[%emt 0:02:03]} 23. Nxa2 {[%emt 0:00:08]} Rfd8 {[%emt 0:00:12]} 24. Rd2 {[%emt 0:05:03]} Bb6 {[%emt 0:00:02]} 25. Bf2 {[%emt 0:00:41]} Rac8 {[%emt 0:00:53]} 26. Nc3 {[%emt 0:01:38]} Ba5 {[%emt 0:00:18]} 27. Qa1 {[%emt 0:00:33]} Bb4 {[%emt 0:00:40]} 28. Bh4 {[%emt 0:01:32]} Re8 {[%emt 0:00:59]} 29. Qxa6 {[%emt 0:01:33]} Bxc3 {[%emt 0:00:41]} 30. bxc3 {[%emt 0:00:06]} Rxc3 {[%emt 0:00:07]} 31. Qb5 {[%emt 0:00:47]} Rec8 {[%emt 0:00:22]} 32. Be7 {[%emt 0:04:18]} f6 {[%emt 0:00:08]} 33. Bc5 {[%emt 0:01:11]} Be8 {[%emt 0:00:13]} 34. Qb7 {[%emt 0:00:26]} Rc6 {[%emt 0:03:05]} 35. Qe7 {[%emt 0:00:11]} R6xc5 {[%emt 0:00:17]} 36. Qxe8# 1-0

[Event "XVII Profigaia Open 2017"]
[Site "Gaia"]
[Date "2017.06.17"]
[Round "5"]
[White "Areal, Pedro"]
[Black "Da Silva, Daniel Leite"]
[Result "1/2-1/2"]
[ECO "D31"]
[WhiteElo "1771"]
[BlackElo "2033"]
[Annotator "NA RC"]
[PlyCount "26"]
[EventDate "2017.??.??"]
[EventType "swiss"]
[EventCountry "POR"]
[SourceTitle "playchess.com"]
[Source "ChessBase"]
[SourceQuality "1"]
[TimeControl "5400+30"]

{[%evp 8,26,38,26,32767,32767,0,32767,27,32767,75,12,32767,32767,32767,32767,32767,-132,-110,-125,-106]} 1. d4 d5 2. c4 e6 3. Nc3 Bb4 4. Qb3 Bxc3+ 5. Qxc3 Ne7 6. Bg5 f6 7. Bh4 Nd7 (7... c5 $5 8. e3 cxd4 9. exd4 Nbc6 $11) 8. e3 c6 9. Bd3 (9. Nf3 $14) 9... O-O 10. Qc2 h6 11. Nf3 e5 12. e4 (12. dxe5 $11 {remains equal.} Nxe5 13. Nxe5 fxe5 14. O-O) 12... dxe4 13. Bxe4 g5 $17 1/2-1/2

[Event "XVII Profigaia Open 2017"]
[Site "Gaia"]
[Date "2017.06.17"]
[Round "5"]
[White "Oliveira, Maria Alice Ramos M"]
[Black "Pipiras, Filipa Fortuna"]
[Result "1/2-1/2"]
[ECO "C77"]
[WhiteElo "1561"]
[BlackElo "1641"]
[Annotator "NA RC"]
[PlyCount "61"]
[EventDate "2017.??.??"]
[EventType "swiss"]
[EventCountry "POR"]
[SourceTitle "playchess.com"]
[Source "ChessBase"]
[SourceQuality "1"]
[TimeControl "5400+30"]

1. e4 {[%emt 0:00:00]} e5 {[%emt 0:01:04]} 2. Nf3 {[%emt 0:00:00]} Nc6 {[%emt 0:00:26]} 3. Bb5 {[%emt 0:00:00]} a6 {[%emt 0:01:11]} 4. Ba4 {[%emt 0:00:00]} Nf6 {[%emt 0:00:27]} 5. d3 {[%emt 0:00:00]} b5 {[%emt 0:00:32]} 6. Bb3 {[%emt 0:00:00]} Be7 {[%emt 0:00:27]} 7. c3 {[%emt 0:00:05]} O-O {[%emt 0:00:26]} 8. O-O {[%emt 0:00:04]} d6 {[%emt 0:00:20]} 9. Nbd2 {[%emt 0:00:06]} Na5 {[%emt 0:00:45]} 10. Bc2 {[%emt 0:00:06]} c5 {[%emt 0:00:45]} 11. Re1 {[%emt 0:00:07]} Re8 {[%emt 0:00:28]} 12. Nf1 {[%emt 0:00:12]} h6 {[%emt 0:00:38]} 13. Ng3 {[%emt 0:00:36]} Kh7 {[%emt 0:00:32]} 14. h3 {[%emt 0:03:51]} Bf8 {[%emt 0:01:25]} 15. Nh2 {[%emt 0:12:24]} g6 {[%emt 0:12:05]} 16. Qe2 {[%emt 0:21:32]} Nc6 {[%emt 0:04:46]} 17. Bb3 {[%emt 0:03:26]} Qc7 {[%emt 0:02:22]} 18. Qf3 {[%emt 0:07:31]} Bg7 {[%emt 0:02:41]} 19. Ng4 {[%emt 0:11:14]} Nxg4 {[%emt 0:08:14]} 20. hxg4 {[%emt 0:00:20]} Rf8 {[%emt 0:02:21]} 21. g5 {[%emt 0:07:28]} Qe7 {[%emt 0:14:25]} 22. Bd5 {[%emt 0:01:51]} Bd7 {[%emt 0:07:08]} 23. Bxc6 {[%emt 0:07:24]} Bxc6 {[%emt 0:01:18]} 24. gxh6 {[%emt 0:04:46]} Bxh6 {[%emt 0:06:26]} 25. Nf5 {[%emt 0:02:20]} gxf5 {[%emt 0:01:13]} 26. Qxf5+ {[%emt 0:00:08]} Kg7 {[%emt 0:00:20]} 27. Qg4+ {[%emt 0:12:15]} Kh7 {[%emt 0:00:41]} 28. Qf5+ {[%emt 0:02:59]} Kg7 {[%emt 0:00:16]} 29. Qg4+ {[%emt 0:00:58]} Kh7 {[%emt 0:00:19]} 30. Qf5+ {[%emt 0:00:04]} Kg7 {[%emt 0:00:25]} 31. Qg4+ 1/2-1/2

[Event "XVII Profigaia Open 2017"]
[Site "Gaia"]
[Date "2017.06.17"]
[Round "5"]
[White "Da Silva, Pedro Vieira Prado"]
[Black "Figueiredo, Bruno"]
[Result "0-1"]
[ECO "B35"]
[WhiteElo "1521"]
[BlackElo "1914"]
[Annotator "NA RC"]
[PlyCount "42"]
[EventDate "2017.??.??"]
[EventType "swiss"]
[EventCountry "POR"]
[SourceTitle "playchess.com"]
[Source "ChessBase"]
[SourceQuality "1"]
[TimeControl "5400+30"]

1. e4 {[%emt 0:00:00]} c5 {[%emt 0:03:38]} 2. Nf3 {[%emt 0:00:00]} Nc6 {[%emt 0:00:05]} 3. d4 {[%emt 0:00:00]} cxd4 {[%emt 0:00:30]} 4. Nxd4 {[%emt 0:00:09]} g6 {[%emt 0:00:00]} 5. Nc3 {[%emt 0:00:00]} Bg7 {[%emt 0:00:00]} 6. Be3 {[%emt 0:00:00]} Nf6 {[%emt 0:00:00]} 7. Bc4 {[%emt 0:00:00]} Qa5 {[%emt 0:00:00]} 8. O-O {[%emt 0:00:16]} O-O {[%emt 0:00:06]} 9. Qd2 {[%emt 0:00:18] B35: Sicilian: Accelerated Dragon with 5 Nc3: main line} (9. Nd5 Nxd5 10. exd5 Ne5 11. Nb3 Qc7 12. Be2 d6 13. Bd4 Nd7 14. Bxg7 Kxg7 15. c4 Nf6 16. Rc1 a5 17. Re1 {½-½ (24) Shirov,A (2673)-Mamedov,R (2688) Tallinn 2016}) 9... Ng4 {[%emt 0:00:14]} 10. Nxc6 {[%emt 0:00:43]} bxc6 {[%emt 0:01:29]} 11. Bd4 {[%emt 0:02:08]} Ne5 $146 {[%emt 0:08:33]} ({Predecessor:} 11... Qc7 12. f4 Bxd4+ 13. Qxd4 Qb6 14. Qxb6 axb6 15. Rfe1 Nf6 16. e5 Nh5 {1-0 (87) Grot,B (1163)-Klonov,J (1232) Kouty nad Desnou 2016}) 12. Bb3 {[%emt 0:04:06]} Ba6 {[%emt 0:01:42]} 13. Rfd1 {[%emt 0:02:47]} d6 {[%emt 0:01:16]} 14. f4 {[%emt 0:03:21]} Ng4 {[%emt 0:01:54]} 15. Bxg7 {[%emt 0:01:04]} Kxg7 {[%emt 0:00:04]} 16. Qd4+ {[%emt 0:00:51]} e5 {[%emt 0:00:53]} 17. Qd2 {[%emt 0:21:44]} Qb6+ {[%emt 0:00:52]} 18. Kh1 {[%emt 0:00:22]} Nf2+ $19 {[%emt 0:00:12]} 19. Kg1 {[%emt 0:00:02]} Nxd1+ {[%emt 0:00:38]} 20. Kh1 {[%emt 0:00:07]} Nf2+ {[%emt 0:00:08]} 21. Kg1 {[%emt 0:00:05]} Nxe4+ {[%emt 0:00:15]} 0-1